[Event "87th Spanish Championship 2022"]
[Site "Linares"]
[Date "2022.08.13"]
[Round "4.8"]
[White "Lopez Varela, Pablo"]
[Black "Garriga Cazorla, Pere"]
[Result "0-1"]
[ECO "B51"]
[WhiteElo "2158"]
[BlackElo "2505"]
[Annotator "TA"]
[PlyCount "100"]
[EventDate "2022.08.11"]
[EventType "swiss"]
[EventCountry "ESP"]
[SourceTitle "playchess.com"]
[Source "ChessBase"]
[SourceQuality "1"]
[TimeControl "5400+30"]

{[%evp 9,100,10,21,13,45,27,45,44,45,22,29,26,45,0,0,0,0,12,7,0,8,0,0,0,0,0,16,0,31,0,0,0,0,-25,-15,-26,-28,-53,-20,-55,0,-50,-43,-47,-31,-56,0,-216,-202,-195,-206,-214,-195,-253,-236,-256,-233,-333,-333,-364,-364,-332,-285,-369,-360,-451,-445,-550,-491,-468,-462,-494,-414,-400,-410,-411,-400,-385,-392,-439,-438,-439,-433,-427,-409,-403,-394,-393,-381,-455,-453,-412,-419]} 1. e4 {[%emt 0:00:03]} c5 {[%emt 0:00:10]} 2. Nf3 {[%emt 0:00:06]} d6 {[%emt 0:00:06]} 3. Bb5+ {[%emt 0:00:04]} Nd7 {[%emt 0:00:11]} 4. a4 {[%emt 0:00:05]} Ngf6 {[%emt 0:00:11]} 5. Nc3 {[%emt 0:00:05]} a6 {[%emt 0:00:18]} (5... e6 {feels hotter.} 6. d4 cxd4 7. Qxd4 a6) 6. Be2 {[%emt 0:00:12] B51: Sicilian: Moscow Variation (3 Bb5+) without 3...Bd7.} g6 {[%emt 0:00:17]} 7. a5 {[%emt 0:01:55]} Bg7 {[%emt 0:00:05]} 8. O-O {[%emt 0:00:07] White is slightly better.} O-O {[%emt 0:00:03]} 9. Re1 {[%emt 0:01:03]} b5 {[%emt 0:02:23]} 10. axb6 $1 {[%emt 0:00:28]} Nxb6 {[%emt 0:00:07] [#]} 11. d4 $146 {[%emt 0:01:40]} ({Predecessor:} 11. d3 Bb7 12. Bg5 c4 13. dxc4 Nxe4 14. Nxe4 Bxe4 15. Bd3 Bxf3 16. Qxf3 Re8 17. Be4 {½-½ (59) Blohberger,F (2475)-Morgunov,M (2393) Graz 2021}) 11... cxd4 {[%emt 0:06:16]} 12. Nxd4 {[%emt 0:00:12]} Bb7 {[%emt 0:00:45][%cal Bc8b7,Bb7d5,Bd5c4,Bc4b5][%mdl 32] Prevents Nc6.} 13. Bf1 {[%emt 0:05:23]} Qc7 {[%emt 0:15:20]} 14. Nb3 {[%emt 0:04:40]} d5 {[%emt 0:02:25]} 15. exd5 {[%emt 0:03:53]} Nfxd5 {[%emt 0:02:06]} 16. Nxd5 {[%emt 0:01:39]} Bxd5 {[%emt 0:00:38]} 17. Na5 {[%emt 0:03:10]} e6 {[%emt 0:08:39]} 18. c3 {[%emt 0:02:02]} Rfb8 {[%emt 0:08:05]} 19. Be3 {[%emt 0:06:54][%cal Oc3c4]} Nc4 $1 {[%emt 0:06:03]} 20. Bxc4 {[%emt 0:08:52]} Bxc4 {[%emt 0:00:52]} 21. Ra4 {[%emt 0:00:18]} Bb5 {[%emt 0:02:41] This bishop pair is nice.} 22. Ra3 {[%emt 0:01:31]} Rd8 {[%emt 0:03:19]} 23. Qf3 {[%emt 0:05:30]} Rac8 {[%emt 0:01:52]} 24. h4 {[%emt 0:01:57][%cal Oc3c4]} h6 {[%emt 0:01:23]} ({Black should play} 24... Rd5 $15) 25. Nb3 {[%emt 0:08:41]} (25. c4 $11 Bc6 26. Nxc6 Qxc6 27. Qxc6 Rxc6 28. b3) 25... Bc4 {[%emt 0:09:53]} 26. Nc5 {[%emt 0:01:41]} Bd5 {[%emt 0:06:26]} 27. Qe2 {[%emt 0:01:36]} Qe7 {[%emt 0:00:18]} (27... a5 $15) 28. h5 $2 {[%emt 0:08:52] Black keeps a firm grip on the game.} (28. c4 $11 Ba8 29. h5) 28... Rxc5 $19 {[%emt 0:03:32]} 29. Bxc5 {[%emt 0:00:03]} Qxc5 {[%emt 0:00:08]} 30. hxg6 {[%emt 0:00:03]} fxg6 {[%emt 0:00:17]} 31. Qxa6 {[%emt 0:02:34]} (31. Qc2 {keeps fighting.}) 31... Rf8 {[%emt 0:00:07][%cal Bd8f8,Bf8f5,Bf5e5][%mdl 32]} 32. Qe2 {[%emt 0:01:51]} Rf5 {[%emt 0:02:42] [#] ...Rg5 is the strong threat. Chess con chili.} 33. Qe3 {[%emt 0:01:53]} (33. Ra4 $142) 33... Qc6 {[%emt 0:02:31] Threatens to win with ...Re5.} 34. f3 {[%emt 0:03:29]} Re5 {[%emt 0:01:19]} 35. Qf2 {[%emt 0:00:18]} Rg5 {[%emt 0:00:03]} 36. Re3 {[%emt 0:02:29]} Bf8 {[%emt 0:00:31]} 37. b4 {[%emt 0:00:07] Against Bc5} Bd6 {[%emt 0:01:35]} 38. Ra7 {[%emt 0:01:43]} Bc7 {[%emt 0:02:34]} 39. Rxc7 {[%emt 0:00:04]} Qxc7 {[%emt 0:00:02]} 40. Qh4 {[%emt 0:01:24]} Rh5 {[%emt 0:01:02]} 41. Qf6 {[%emt 0:00:23]} Qh2+ {[%emt 0:00:39]} ({Stronger than} 41... Qg3 42. Qd8+ Kh7 43. Qe7+ Kh8 44. Qf8+ Kh7 45. Qf7+ Kh8 46. Qf8+ Kh7 47. Qf7+ Kh8 48. Qf8+ $11) 42. Kf2 {[%emt 0:00:50] [#]} Qh4+ {[%emt 0:00:04]} ({And not} 42... Rg5 43. Qd8+ Kf7 44. Qd7+ Kg8 45. Qd8+ Kf7 46. Qd7+ Kg8 47. Qd8+ $11) 43. Qxh4 {[%emt 0:00:04]} Rxh4 {[%emt 0:00:03][%mdl 4096] Endgame KRB-KR} 44. Re2 {[%emt 0:00:43]} Rc4 {[%emt 0:00:47]} 45. Rc2 {[%emt 0:00:04]} Kf7 {[%emt 0:00:10]} 46. Ke3 {[%emt 0:00:15]} Kf6 {[%emt 0:00:19]} 47. Kd3 {[%emt 0:00:29]} Ke5 {[%emt 0:00:49]} 48. b5 {[%emt 0:00:31]} Kd6 {[%emt 0:00:54]} 49. b6 {[%emt 0:01:23]} Kc6 {[%emt 0:00:59]} 50. Rb2 {[%emt 0:00:12] Hoping for b7.} Kb7 {[%emt 0:00:05] Weighted Error Value: White=0.29 (precise) /Black=0.11 (very precise)} 0-1

[Event "87th Spanish Championship 2022"]
[Site "Linares"]
[Date "2022.08.13"]
[Round "4.9"]
[White "Narciso Dublan, Marc"]
[Black "Macias Pino, Diego"]
[Result "1/2-1/2"]
[ECO "A45"]
[WhiteElo "2461"]
[BlackElo "2355"]
[Annotator "TA"]
[PlyCount "54"]
[EventDate "2022.08.11"]
[EventType "swiss"]
[EventCountry "ESP"]
[SourceTitle "playchess.com"]
[Source "ChessBase"]
[SourceQuality "1"]
[TimeControl "5400+30"]

{[%evp 9,54,4,25,0,0,8,8,-10,20,16,26,19,47,39,66,66,85,75,69,67,61,35,52,31,31,40,41,20,21,25,22,19,21,12,16,5,5,5,5,0,0,0,0,0,0,0,0]} 1. d4 {[%emt 0:00:05]} Nf6 {[%emt 0:00:04]} 2. Bg5 {[%emt 0:00:18]} d5 {[%emt 0:00:04]} 3. e3 {[%emt 0:00:22]} c5 {[%emt 0:00:03]} 4. Bxf6 {[%emt 0:00:28]} gxf6 {[%emt 0:00:02]} 5. dxc5 {[%emt 0:00:28]} e6 {[%emt 0:00:04]} 6. Nf3 {[%emt 0:00:35] D00: 1 d4 d5: Unusual lines.} Bxc5 {[%emt 0:00:12]} 7. Be2 {[%emt 0:00:40]} Nc6 {[%emt 0:02:10]} 8. O-O {[%emt 0:00:13] [#]} Qc7 $146 {[%emt 0:01:18]} ({Predecessor:} 8... O-O 9. c4 dxc4 10. Qa4 f5 11. Qxc4 Bb6 12. Nc3 Qf6 13. Rfd1 Rd8 14. Rxd8+ Qxd8 {½-½ (46) Swiercz,D (2665)-Vidit,S (2723) Chess.com INT 2022}) 9. c4 {[%emt 0:01:47]} dxc4 {[%emt 0:00:43]} 10. Qa4 {[%emt 0:00:40]} Bd7 {[%emt 0:01:29][%cal Ob7b5]} 11. Qxc4 {[%emt 0:00:35]} Bd6 {[%emt 0:01:29]} 12. Nc3 {[%emt 0:05:43]} Ne5 {[%emt 0:03:46] [#]} 13. Qh4 {[%emt 0:01:58] Strongly threatening Ne4.} f5 {[%emt 0:10:32] Inhibits Ne4.} 14. Rac1 {[%emt 0:05:37][%cal Oc3d5]} Qb6 {[%emt 0:09:36]} 15. Rfd1 {[%emt 0:28:50] Hoping for Nxe5.} Ng6 {[%emt 0:11:05]} 16. Qd4 {[%emt 0:13:55]} Qxd4 {[%emt 0:01:30]} 17. Nxd4 {[%emt 0:00:08]} Ke7 {[%emt 0:16:47]} 18. Ncb5 {[%emt 0:09:23] Pair of Knights!} Be5 {[%emt 0:01:06]} 19. f4 {[%emt 0:03:52]} Bxd4 {[%emt 0:01:18]} 20. Nxd4 {[%emt 0:05:01] [#] Black must now prevent Rc7. The position is equal.} Rac8 {[%emt 0:02:45] Inhibits Rc7.} 21. Bf3 {[%emt 0:02:47]} Nh4 {[%emt 0:06:01]} 22. Bxb7 {[%emt 0:06:41]} Rxc1 {[%emt 0:00:23]} 23. Rxc1 {[%emt 0:00:03] aiming for b3.} Rb8 {[%emt 0:00:06]} 24. Nc6+ {[%emt 0:01:22]} ({But not} 24. Rc7 Kd6 25. Rxd7+ Kxd7 26. Bc6+ Kd6 $17) 24... Bxc6 {[%emt 0:00:06]} 25. Bxc6 {[%emt 0:00:04]} Rxb2 {[%emt 0:00:08]} 26. g3 {[%emt 0:00:53]} Ng6 {[%emt 0:00:07]} 27. a4 {[%emt 0:00:21]} Kf6 {[%emt 0:01:08] Weighted Error Value: White=0.05 (flawless) /Black=0.06 (flawless)} 1/2-1/2

[Event "87th Spanish Championship 2022"]
[Site "Linares"]
[Date "2022.08.13"]
[Round "4.10"]
[White "Garcia Martin, Marta"]
[Black "Plazuelo Pascual, Juan"]
[Result "1-0"]
[ECO "B23"]
[WhiteElo "2305"]
[BlackElo "2448"]
[Annotator "TA"]
[PlyCount "79"]
[EventDate "2022.08.11"]
[EventType "swiss"]
[EventCountry "ESP"]
[SourceTitle "playchess.com"]
[Source "ChessBase"]
[SourceQuality "1"]
[TimeControl "5400+30"]

{[%evp 9,79,0,0,0,0,0,6,0,12,4,9,8,47,51,74,71,78,43,33,47,58,16,15,14,14,19,32,-49,-44,-59,-62,-59,0,0,39,33,39,40,41,40,90,97,101,92,116,122,210,198,199,192,181,70,84,80,84,0,0,-11,935,919,1362,1433,1200,1231,1077,1058,29986,29978,29978,29979,12840,12836]} 1. e4 {[%emt 0:00:03]} c5 {[%emt 0:00:06]} 2. Nc3 {[%emt 0:00:06]} d6 {[%emt 0:00:37]} 3. d4 {[%emt 0:00:22]} cxd4 {[%emt 0:00:32]} 4. Qxd4 {[%emt 0:00:06]} Nc6 {[%emt 0:00:47]} 5. Qd2 {[%emt 0:00:06]} g6 {[%emt 0:08:50]} 6. b3 {[%emt 0:02:05] B23: Closed Sicilian: Lines without g3.} Bh6 {[%emt 0:00:16]} 7. f4 {[%emt 0:00:09]} Nf6 {[%emt 0:01:11]} 8. Bb2 {[%emt 0:00:20] The position is equal.} O-O {[%emt 0:02:26]} 9. O-O-O {[%emt 0:00:10]} e5 {[%emt 0:06:06]} 10. g3 {[%emt 0:02:21]} Bg4 {[%emt 0:19:28]} 11. Be2 {[%emt 0:05:32] [#]} Qc8 $146 {[%emt 0:06:41]} ({Predecessor:} 11... Be6 12. Kb1 Rc8 13. Nf3 a6 14. Qe1 Qc7 15. Bd3 Bg4 16. Rf1 Nd4 17. Nxd4 exd4 {½-½ (45) Xu,X (2582)-Sasikiran,K (2656) Moscow 2019}) 12. Nf3 {[%emt 0:32:07]} (12. Qxd6 Bg7 $14) 12... Re8 {[%emt 0:09:06][%cal Ob7b5]} 13. h3 {[%emt 0:01:39]} (13. Qxd6 Qd8 $11) 13... Bxf3 {[%emt 0:07:26]} 14. Bxf3 {[%emt 0:00:05]} Nd4 {[%emt 0:00:23]} 15. Bg2 {[%emt 0:01:48]} Qc6 {[%emt 0:04:11]} 16. Kb1 {[%emt 0:04:13]} Rac8 {[%emt 0:00:46]} 17. Qf2 {[%emt 0:01:12]} b5 {[%emt 0:05:07][%cal Bb7b5,Bb5b4][%mdl 32]} 18. Rd2 {[%emt 0:26:25]} ({White should try} 18. Rhf1 $14 b4 19. fxe5 bxc3 20. Rxd4 cxb2 21. Rc4) 18... b4 $15 {[%emt 0:01:51]} 19. Nd5 {[%emt 0:00:42]} Nxd5 {[%emt 0:01:25]} 20. exd5 {[%emt 0:00:03]} Qc7 {[%emt 0:00:37]} (20... Qc5 $15) 21. Bf1 $1 $11 {[%emt 0:03:09]} (21. Bxd4 exd4 22. Rd3 (22. Rxd4 $2 Bg7 $17) 22... Re3 $15) 21... Bg7 {[%emt 0:09:30]} 22. Bc4 {[%emt 0:01:21]} Nf5 {[%emt 0:00:06] aiming for ...e4.} 23. g4 {[%emt 0:03:26]} e4 $1 {[%emt 0:00:19]} 24. Re2 {[%emt 0:00:50]} ({Of course not} 24. gxf5 e3 25. Qh2 exd2 26. Qxd2 Bxb2 27. Kxb2 Qe7 28. fxg6 fxg6 29. Qxb4 Qe4 $17) 24... Bxb2 {[%emt 0:05:11]} (24... e3 $14 25. Qe1 Nd4) 25. Kxb2 $16 {[%emt 0:00:03]} Ng7 {[%emt 0:00:50][%cal Bf5g7,Bg7h5,Bh5g3][%mdl 32]} 26. f5 {[%emt 0:09:34] f6 is the strong threat.} gxf5 {[%emt 0:01:39]} 27. gxf5 {[%emt 0:00:04] Black must now prevent f6.} Qe7 {[%emt 0:02:21]} (27... Qa5 $2 28. f6 Nh5 29. Qh4 $18) (27... Qc5 $16) 28. f6 $18 {[%emt 0:01:44] Active counter play!} Qe5+ {[%emt 0:00:02]} 29. Kb1 {[%emt 0:00:03] Hoping for Rg1.} Nh5 {[%emt 0:01:10] [#]} 30. Qh4 {[%emt 0:01:26] Chess con chili.} (30. Rhe1 $1 $18 Qxf6 31. Qxa7) 30... Kh8 $14 {[%emt 0:00:57]} (30... Nxf6 $2 31. Rf1 Nh5 32. Rg2+ (32. Rxe4 Qxe4 33. Qxh5 Qg6 $15) 32... Kh8 33. Rg5 $18) 31. Rhe1 {[%emt 0:00:09][%cal Re2e4]} Ng3 {[%emt 0:04:14] [#]} (31... Nxf6 $2 32. Rf2 Nh5 33. Rxf7 $18) 32. Rg2 $40 {[%emt 0:03:43][%mdl 128] White mounts an attack.} (32. Re3 $1 $16 {[%cal Re3g3]} Rg8 33. Bd3) 32... Rg8 {[%emt 0:00:01] Strongly threatening ...Rg6.} 33. Bd3 {[%emt 0:01:21][%cal Bc4d3,Bd3e4,Be4g6][%mdl 32]} Qc3 $2 {[%emt 0:01:32][%mdl 8192] This move loses the game for Black.} (33... Rg6 $11) 34. Rxe4 $18 {[%emt 0:00:21][%cal Oh4h7] Threatening mate with Qxh7+!} Nxe4 {[%emt 0:01:08]} 35. Bxe4 {[%emt 0:00:06][%csl Ge4][%cal Rh4h7]} ({Inferior is} 35. Qxe4 Rg6 36. Rxg6 hxg6 $11) 35... Rg6 {[%emt 0:00:15]} 36. Rxg6 {[%emt 0:00:58]} fxg6 {[%emt 0:00:17]} 37. Bxg6 {[%emt 0:00:03][%csl Gg6][%cal Rh4h7]} Qc7 {[%emt 0:01:01]} 38. f7 {[%emt 0:00:24][%csl Gg6][%cal Rh4h7]} Kg7 {[%emt 0:00:01]} 39. Qxh7+ {[%emt 0:00:07]} Kf6 {[%emt 0:00:01]} 40. f8=Q+ {Weighted Error Value: White=0.17 (very precise) /Black=0.34} 1-0

[Event "87th Spanish Championship 2022"]
[Site "Linares"]
[Date "2022.08.13"]
[Round "4.11"]
[White "Merario Alarcon, Andres"]
[Black "Cesar Maestre, Bernardo"]
[Result "1-0"]
[ECO "D25"]
[WhiteElo "2418"]
[BlackElo "2343"]
[Annotator "TA"]
[PlyCount "107"]
[EventDate "2022.08.11"]
[EventType "swiss"]
[EventCountry "ESP"]
[SourceTitle "playchess.com"]
[Source "ChessBase"]
[SourceQuality "1"]
[TimeControl "5400+30"]

{[%evp 15,107,34,36,21,30,31,32,43,112,112,86,105,102,79,85,82,76,27,84,101,100,94,101,101,100,35,40,29,318,316,300,304,270,62,68,69,67,56,62,8,14,0,8,8,10,8,15,0,6,0,0,0,20,20,24,8,8,8,8,8,8,8,8,8,8,8,11,11,12,12,12,12,12,12,29,30,30,0,43,43,43,8,12,0,155,145,4779,4779,29988,29989,29992,29993,29993,1124]} 1. d4 {[%emt 0:00:04]} d5 {[%emt 0:00:19]} 2. c4 {[%emt 0:00:09]} dxc4 {[%emt 0:00:08]} 3. Nf3 {[%emt 0:00:41]} Nf6 {[%emt 0:00:11]} 4. e3 {[%emt 0:00:06]} a6 {[%emt 0:00:09]} 5. Bxc4 {[%emt 0:00:11]} e6 {[%emt 0:00:06]} 6. O-O {[%emt 0:01:08]} c5 {[%emt 0:00:08]} 7. dxc5 {[%emt 0:00:51]} Bxc5 {[%emt 0:01:14]} 8. Qxd8+ {[%emt 0:00:52]} Kxd8 {[%emt 0:00:05]} 9. Ne5 $1 {[%emt 0:00:16][%mdl 4] 9.Ne5 is the modern continuation. D27: Queen's Gambit Accepted: Classical main line: 7 e4!? and 7 a4.} Ke7 {[%emt 0:00:36]} 10. Be2 {[%emt 0:00:06]} Nbd7 {[%emt 0:09:08]} 11. Nc4 {[%emt 0:00:07] White is slightly better.} Nb6 {[%emt 0:07:51] [#]} (11... Re8 $14) 12. b4 $1 $16 {[%emt 0:00:25]} Nxc4 {[%emt 0:01:14]} 13. bxc5 {[%emt 0:00:06]} Na5 {[%emt 0:01:34]} 14. Ba3 {[%emt 0:13:46]} Rd8 {[%emt 0:09:33]} 15. Nc3 {[%emt 0:01:28]} Ke8 {[%emt 0:01:05]} 16. Rfd1 {[%emt 0:05:06] [#]} (16. g4 $16) 16... Bd7 $146 {[%emt 0:02:58]} (16... Rxd1+ $11 17. Rxd1 e5) ({Predecessor:} 16... Rxd1+ 17. Rxd1 Bd7 18. e4 e5 19. Nd5 Rc8 20. f3 Nc6 21. Nb6 Rd8 22. Nc4 Be6 {1-0 (29) Hassenrueck,H (2117)-Kraemer,M (2216) Nordrheinwestfalen 2018}) 17. g4 {[%emt 0:03:15] White is more active.} h6 {[%emt 0:08:48]} 18. h4 {[%emt 0:01:02]} g5 {[%emt 0:00:26]} 19. hxg5 {[%emt 0:01:19]} hxg5 {[%emt 0:00:06]} 20. f4 {[%emt 0:02:30]} (20. Rd6 $16) 20... gxf4 $14 {[%emt 0:01:36]} 21. exf4 {[%emt 0:02:15] Black must now prevent g5.} Nd5 $2 {[%emt 0:06:58][%mdl 8192]} (21... Bb5 $1 $11) 22. Nxd5 $18 {[%emt 0:07:31]} exd5 {[%emt 0:00:12]} 23. Rxd5 {[%emt 0:05:14] Re5+ is the strong threat.} Be6 {[%emt 0:00:16]} 24. Rd6 {[%emt 0:09:53]} (24. Rh5 $18) 24... Rxd6 $14 {[%emt 0:04:36]} 25. cxd6 {[%emt 0:01:21] Threatens to win with f5.} Kd7 {[%emt 0:00:36]} 26. f5 {[%emt 0:10:26]} Bd5 {[%emt 0:01:09]} 27. Bb4 {[%emt 0:11:49]} ({Better is} 27. Rc1 $14 Nc6 28. Kf2) 27... Nc6 {[%emt 0:01:16]} 28. Bc5 {[%emt 0:00:08]} Rh8 {[%emt 0:02:10]} 29. Kf2 {[%emt 0:00:35]} Rh2+ {[%emt 0:00:59]} 30. Ke3 {[%emt 0:00:13]} f6 {[%emt 0:05:30]} 31. Rg1 {[%emt 0:03:09]} Rh3+ {[%emt 0:09:49]} 32. Kd2 {[%emt 0:00:32]} Bxa2 {[%emt 0:01:20]} 33. g5 {[%emt 0:00:58]} fxg5 {[%emt 0:00:39]} (33... Na5 $5 {[%cal Ra5b3]} 34. Bg4 Nc4+ 35. Ke1 Rb3 $11) 34. Rxg5 {[%emt 0:01:36]} Ne5 {[%emt 0:00:42]} 35. f6 {[%emt 0:03:41]} Nf7 {[%emt 0:03:16][%csl LRd6,LRg5]} 36. Bg4+ {[%emt 0:06:26]} Kc6 $1 {[%emt 0:02:06]} 37. Bxh3 {[%emt 0:05:51] A strong pair of Bishops.} Nxg5 $11 {[%emt 0:00:05][%mdl 4096] Endgame KBB-KBN} 38. d7 {[%emt 0:01:13]} Nf7 {[%emt 0:00:05]} 39. Be7 {[%emt 0:01:57]} Kc7 {[%emt 0:00:06] Inhibits d8N.} 40. Kc3 {[%emt 0:00:40]} b6 {[%emt 0:02:10]} 41. Kd4 {[%emt 0:00:13]} Bb3 {[%emt 0:00:14]} 42. Bf5 {[%emt 0:00:42]} a5 {[%emt 0:01:21]} 43. Kc3 {[%emt 0:00:18]} Bd5 {[%emt 0:01:14]} 44. Bh3 {[%emt 0:00:36]} Ba2 {[%emt 0:00:41]} 45. Kd4 {[%emt 0:00:22]} Bb3 {[%emt 0:00:17]} 46. Kc3 {[%emt 0:01:26]} Bd5 {[%emt 0:00:09]} 47. Bf5 {[%emt 0:00:09]} Ba2 {[%emt 0:00:08]} 48. Ba3 {[%emt 0:00:43]} Bd5 {[%emt 0:00:52]} 49. Bc1 {[%emt 0:00:15]} Bc6 $2 {[%emt 0:02:45] [#]} ({Black should play} 49... Nd8 $11) 50. Bf4+ $1 $16 {[%emt 0:00:52]} Kd8 $2 {[%emt 0:00:20][%mdl 8192]} (50... Kb7 $16 51. Kd4 (51. Bg6 Nd8 $16) 51... a4) 51. Be6 $18 {[%emt 0:00:47]} Nh8 {[%emt 0:00:15]} 52. Bg5 {[%emt 0:00:34] White mates.} ({Not} 52. f7 Nxf7 53. Bxf7 Kxd7 $14) 52... Kc7 {[%emt 0:00:05]} 53. d8=Q+ {[%emt 0:00:16]} ({Less strong is} 53. f7 Nxf7 54. Bf4+ (54. Bxf7 Kxd7 55. Bh5 a4 $14) 54... Kd8 $14) 53... Kxd8 {[%emt 0:00:31]} 54. f7+ {[%emt 0:00:03] Weighted Error Value: White=0.19 (very precise) /Black=0.30} 1-0

[Event "87th Spanish Championship 2022"]
[Site "Linares"]
[Date "2022.08.13"]
[Round "4.12"]
[White "Carbonell Sancho, Marc"]
[Black "Ladron De Guevara Pinto, Paolo"]
[Result "1/2-1/2"]
[ECO "B56"]
[WhiteElo "2284"]
[BlackElo "2444"]
[Annotator "TA"]
[PlyCount "65"]
[EventDate "2022.08.11"]
[EventType "swiss"]
[EventCountry "ESP"]
[SourceTitle "playchess.com"]
[Source "ChessBase"]
[SourceQuality "1"]
[TimeControl "5400+30"]

{[%evp 22,65,50,58,45,52,46,39,35,42,38,47,54,54,48,55,52,0,22,18,18,8,61,49,68,14,14,0,9,5,8,-4,0,0,0,0,0,0,0,0,0,0,0,0,0,-29981]} 1. e4 {[%emt 0:06:45]} c5 {[%emt 0:00:08]} 2. Nf3 {[%emt 0:00:09][%cal Bg1f3,Bf3d4,Bd4f5][%mdl 32]} d6 {[%emt 0:00:05]} 3. d4 {[%emt 0:00:04]} cxd4 {[%emt 0:00:05]} 4. Nxd4 {[%emt 0:00:04]} Nf6 {[%emt 0:00:06]} 5. Nc3 {[%emt 0:00:03]} e5 {[%emt 0:00:03]} 6. Bb5+ {[%emt 0:05:47]} Nbd7 {[%emt 0:00:35]} 7. Nf5 {[%emt 0:03:23]} a6 {[%emt 0:00:10]} 8. Bxd7+ {[%emt 0:08:17]} Qxd7 {[%emt 0:00:15]} 9. Bg5 {[%emt 0:03:14]} Nxe4 {[%emt 0:00:17]} 10. Nxg7+ {[%emt 0:00:05]} Bxg7 {[%emt 0:00:06]} 11. Nxe4 {[%emt 0:00:03]} O-O {[%emt 0:00:07]} 12. Qxd6 {[%emt 0:12:37]} f6 {[%emt 0:06:45] [#] ...Qxd6 is the strong threat. B56: Classical Sicilian: Unusual Lines.} 13. Qxd7 {[%emt 0:07:16] has lost popularity (13.Be3).} (13. Be3 {seems wilder.} Qg4 14. Nc5 Qb4+ 15. Qd2) 13... Bxd7 {[%emt 0:00:33]} 14. Be3 {[%emt 0:00:12]} Bf5 {[%emt 0:34:59] White is slightly better.} 15. f3 {[%emt 0:03:22]} Bxe4 {[%emt 0:02:34]} 16. fxe4 {[%emt 0:00:06]} Rac8 {[%emt 0:00:02]} 17. c3 {[%emt 0:17:26]} Rc4 {[%emt 0:00:34]} 18. Kf2 {[%emt 0:00:04]} Rxe4 {[%emt 0:00:07] [#]} 19. b3 $146 {[%emt 0:00:05]} (19. g3 $14) ({Predecessor:} 19. Rad1 f5 20. Rd7 b5 21. Rhd1 b4 22. Bc5 bxc3 23. Bxf8 c2 24. Rc1 Bxf8 25. Rxc2 {1-0 (34) Ciornei,D (2077)-Holtel,J (2003) Germany 2015}) 19... Rg4 {[%emt 0:08:49]} 20. Rad1 {[%emt 0:02:48]} f5 {[%emt 0:03:50]} 21. g3 {[%emt 0:00:05]} Rg6 {[%emt 0:14:06]} (21... b5 $11) 22. c4 $1 $14 {[%emt 0:03:57]} h5 {[%emt 0:04:52][%cal Bh7h5,Bh5h4,Bh4h3,Bh3g2][%mdl 32]} 23. c5 {[%emt 0:02:36] White is more active.} (23. Rd7 $14) 23... Rf7 {[%emt 0:08:05] The position is equal.} 24. b4 {[%emt 0:02:39]} h4 {[%emt 0:02:45]} 25. Rd8+ {[%emt 0:11:29]} Kh7 {[%emt 0:00:11]} 26. Rc1 {[%emt 0:00:04]} f4 {[%emt 0:08:10]} 27. gxf4 {[%emt 0:00:07]} Bh6 {[%emt 0:00:10]} 28. Rc4 {[%emt 0:09:44]} h3 {[%emt 0:02:01]} 29. Kf3 {[%emt 0:00:30]} Rg2 {[%emt 0:00:15]} 30. Rd2 {[%emt 0:01:23]} Bxf4 {[%emt 0:00:14]} (30... exf4 $5 31. Bf2 Rxh2 $11) 31. Rxg2 {[%emt 0:00:05]} hxg2 {[%emt 0:01:12]} 32. Bg1 {[%emt 0:00:13]} Bxh2+ {[%emt 0:01:47]} 33. Ke4 $2 {[%mdl 40960] Weighted Error Value: White=0.09 (flawless) /Black=0.07 (flawless) . An unexpected result.} (33. Kxg2 $11 Bxg1 34. Kxg1) 1/2-1/2